[Event "Early-Titled-Tuesday-Blitz-June-18-2024"]
[Site "Chess.com"]
[Date "2024.06.18"]
[Round "6"]
[White "gabduschew"]
[Black "pfalcon1949"]
[Result "1-0"]
[WhiteElo "2304"]
[BlackElo "1791"]
[TimeControl "180+1"]
[EndTime "9:04:31 PDT"]
[Termination "gabduschew won by resignation"]

1. e4 {[%clk 0:03:00.9]} 1... e6 {[%clk 0:02:57.3]} 2. c4 {[%clk 0:02:53]} 2...
d5 {[%clk 0:02:56.2]} 3. cxd5 {[%clk 0:02:53]} 3... exd5 {[%clk 0:02:56.1]} 4.
Qa4+ {[%clk 0:02:52.7]} 4... Bd7 {[%clk 0:02:51.3]} 5. Qb3 {[%clk 0:02:46.6]}
5... Bc6 {[%clk 0:02:38.7]} 6. d4 {[%clk 0:02:41.5]} 6... dxe4 {[%clk
0:02:36.1]} 7. Bc4 {[%clk 0:02:42.1]} 7... Qe7 {[%clk 0:02:29]} 8. Ne2 {[%clk
0:02:40.8]} 8... Nf6 {[%clk 0:02:27.6]} 9. Nbc3 {[%clk 0:02:38.3]} 9... Nbd7
{[%clk 0:02:26.2]} 10. O-O {[%clk 0:02:18.5]} 10... Nb6 {[%clk 0:02:20.8]} 11.
d5 {[%clk 0:02:16.4]} 11... Nxc4 {[%clk 0:02:16]} 12. dxc6 {[%clk 0:02:15.1]}
12... Na5 {[%clk 0:02:12.1]} 13. cxb7 {[%clk 0:02:13.1]} 13... Nxb3 {[%clk
0:02:10.5]} 14. bxa8=Q+ {[%clk 0:02:12.8]} 14... Qd8 {[%clk 0:02:04.4]} 15.
Qxd8+ {[%clk 0:02:12]} 15... Kxd8 {[%clk 0:02:03.2]} 16. axb3 {[%clk 0:02:12.9]}
1-0

[Event "Early-Titled-Tuesday-Blitz-June-18-2024"]
[Site "Chess.com"]
[Date "2024.06.18"]
[Round "6"]
[White "Ati1517"]
[Black "GatoRojo150"]
[Result "0-1"]
[WhiteElo "2029"]
[BlackElo "2619"]
[TimeControl "180+1"]
[EndTime "9:04:33 PDT"]
[Termination "GatoRojo150 won by resignation"]

1. e4 {[%clk 0:02:48.5]} 1... e5 {[%clk 0:03:00]} 2. Nf3 {[%clk 0:02:46.2]} 2...
Nc6 {[%clk 0:03:00.2]} 3. Bc4 {[%clk 0:02:43.3]} 3... Nf6 {[%clk 0:03:00.4]} 4.
d3 {[%clk 0:02:41.4]} 4... d5 {[%clk 0:03:00.6]} 5. exd5 {[%clk 0:02:39.2]} 5...
Nxd5 {[%clk 0:03:01.5]} 6. Bxd5 {[%clk 0:02:39.5]} 6... Qxd5 {[%clk 0:03:00.5]}
7. Nc3 {[%clk 0:02:40.4]} 7... Bb4 {[%clk 0:02:59.9]} 8. Bd2 {[%clk 0:02:39.1]}
8... Bxc3 {[%clk 0:02:59.9]} 9. Bxc3 {[%clk 0:02:40]} 9... Bg4 {[%clk
0:02:59.5]} 10. Qe2 {[%clk 0:02:40.1]} 10... O-O-O {[%clk 0:02:59.4]} 11. O-O-O
{[%clk 0:02:40.4]} 11... Qxa2 {[%clk 0:02:59.4]} 12. h3 {[%clk 0:02:37.3]} 12...
Bh5 {[%clk 0:02:38.4]} 13. g4 {[%clk 0:02:36.5]} 13... Bg6 {[%clk 0:02:38.7]}
14. Nxe5 {[%clk 0:02:36.5]} 14... Rhe8 {[%clk 0:02:38.1]} 15. d4 {[%clk
0:02:25.8]} 15... Nxe5 {[%clk 0:02:33]} 0-1

[Event "Early-Titled-Tuesday-Blitz-June-18-2024"]
[Site "Chess.com"]
[Date "2024.06.18"]
[Round "6"]
[White "ALRS-SPS"]
[Black "LeninGuerra"]
[Result "0-1"]
[WhiteElo "2369"]
[BlackElo "2543"]
[TimeControl "180+1"]
[EndTime "9:04:41 PDT"]
[Termination "LeninGuerra won by resignation"]

1. e4 {[%clk 0:03:00.9]} 1... b6 {[%clk 0:02:59.8]} 2. Nc3 {[%clk 0:02:59.5]}
2... Bb7 {[%clk 0:03:00.7]} 3. Nf3 {[%clk 0:02:58.6]} 3... e6 {[%clk 0:03:01.6]}
4. d4 {[%clk 0:02:57.1]} 4... Ne7 {[%clk 0:03:02.5]} 5. Bg5 {[%clk 0:02:54.7]}
5... g6 {[%clk 0:03:03.4]} 6. Qd2 {[%clk 0:02:52.7]} 6... Bg7 {[%clk 0:03:03.2]}
7. h4 {[%clk 0:02:50.1]} 7... h6 {[%clk 0:03:03.1]} 8. Be3 {[%clk 0:02:48]} 8...
Nbc6 {[%clk 0:03:02.5]} 9. O-O-O {[%clk 0:02:45]} 9... d5 {[%clk 0:03:02.4]} 10.
exd5 {[%clk 0:02:38.6]} 10... Nxd5 {[%clk 0:03:02]} 11. Nxd5 {[%clk 0:02:38]}
11... Qxd5 {[%clk 0:03:02.9]} 12. Kb1 {[%clk 0:02:37.1]} 12... a5 {[%clk
0:03:00.5]} 13. c4 {[%clk 0:02:34.7]} 13... Qd7 {[%clk 0:02:49.4]} 14. d5 {[%clk
0:02:34.9]} 14... exd5 {[%clk 0:02:48.8]} 15. cxd5 {[%clk 0:02:35.2]} 15... Nb4
{[%clk 0:02:48.6]} 16. Bc4 {[%clk 0:02:03.4]} 16... O-O-O {[%clk 0:02:44.3]} 17.
d6 {[%clk 0:01:28.7]} 17... Qf5+ {[%clk 0:02:41.4]} 18. Bd3 {[%clk 0:01:24.3]}
18... Nxd3 {[%clk 0:02:40.4]} 19. Qxd3 {[%clk 0:01:24.9]} 19... Be4 {[%clk
0:02:40.2]} 0-1

[Event "Early-Titled-Tuesday-Blitz-June-18-2024"]
[Site "Chess.com"]
[Date "2024.06.18"]
[Round "6"]
[White "cristiano78"]
[Black "elis06"]
[Result "0-1"]
[WhiteElo "2232"]
[BlackElo "2370"]
[TimeControl "180+1"]
[EndTime "9:05:18 PDT"]
[Termination "elis06 won by resignation"]

1. d4 {[%clk 0:02:59.4]} 1... d5 {[%clk 0:02:59.6]} 2. c4 {[%clk 0:02:59.6]}
2... e6 {[%clk 0:02:59.8]} 3. Nf3 {[%clk 0:02:59.6]} 3... Nf6 {[%clk 0:02:59]}
4. Nc3 {[%clk 0:02:59.9]} 4... Be7 {[%clk 0:02:57.6]} 5. Bg5 {[%clk 0:02:59.7]}
5... O-O {[%clk 0:02:55.7]} 6. e3 {[%clk 0:02:59.6]} 6... Nbd7 {[%clk
0:02:52.2]} 7. c5 {[%clk 0:02:59]} 7... c6 {[%clk 0:02:50.1]} 8. b4 {[%clk
0:02:58.7]} 8... Nh5 {[%clk 0:02:24.7]} 9. Bxe7 {[%clk 0:02:58]} 9... Qxe7
{[%clk 0:02:24.6]} 10. Ne5 {[%clk 0:02:50.8]} 10... Nhf6 {[%clk 0:02:20.9]} 11.
Nxd7 {[%clk 0:02:49.4]} 11... Bxd7 {[%clk 0:02:20.4]} 12. Be2 {[%clk 0:02:47.9]}
12... e5 {[%clk 0:02:20.1]} 13. dxe5 {[%clk 0:02:47.3]} 13... Qxe5 {[%clk
0:02:20]} 14. Qd4 {[%clk 0:02:47.8]} 14... Rfe8 {[%clk 0:02:16.2]} 15. O-O
{[%clk 0:02:45.4]} 15... Qe7 {[%clk 0:02:14.5]} 16. Bf3 {[%clk 0:02:44]} 16...
Bf5 {[%clk 0:02:13.9]} 17. a4 {[%clk 0:02:43.3]} 17... Nd7 {[%clk 0:02:10.6]}
18. b5 {[%clk 0:02:42.9]} 18... Nxc5 {[%clk 0:02:07.4]} 19. bxc6 {[%clk
0:02:42.6]} 19... bxc6 {[%clk 0:02:04.1]} 20. Qf4 {[%clk 0:02:28]} 20... Bg6
{[%clk 0:01:58.8]} 21. Rac1 {[%clk 0:02:27]} 21... Nd3 {[%clk 0:01:58.9]} 22.
Qd4 {[%clk 0:02:16.4]} 22... Nxc1 {[%clk 0:01:58.8]} 23. Rxc1 {[%clk 0:02:16.8]}
23... Qe5 {[%clk 0:01:58.6]} 24. Qd2 {[%clk 0:02:15.1]} 24... h6 {[%clk
0:01:58.1]} 25. Ne2 {[%clk 0:02:14.7]} 25... Rac8 {[%clk 0:01:55.8]} 26. Nd4
{[%clk 0:02:14.3]} 26... c5 {[%clk 0:01:54.1]} 27. Nb5 {[%clk 0:02:14.4]} 27...
a6 {[%clk 0:01:52.7]} 28. Nc3 {[%clk 0:02:12.2]} 28... d4 {[%clk 0:01:52.6]} 29.
exd4 {[%clk 0:02:12.2]} 29... cxd4 {[%clk 0:01:53]} 30. Nd5 {[%clk 0:02:10.6]}
30... Rxc1+ {[%clk 0:01:51.9]} 31. Qxc1 {[%clk 0:02:10.9]} 31... Qe1+ {[%clk
0:01:52]} 0-1

[Event "Early-Titled-Tuesday-Blitz-June-18-2024"]
[Site "Chess.com"]
[Date "2024.06.18"]
[Round "6"]
[White "Chempiblinka"]
[Black "Renatoforf"]
[Result "1-0"]
[WhiteElo "2356"]
[BlackElo "2120"]
[TimeControl "180+1"]
[EndTime "9:05:20 PDT"]
[Termination "Chempiblinka won by resignation"]

1. Nf3 {[%clk 0:02:59.4]} 1... Nf6 {[%clk 0:02:58.7]} 2. g3 {[%clk 0:02:59.8]}
2... d5 {[%clk 0:02:58.1]} 3. Bg2 {[%clk 0:02:59.6]} 3... c5 {[%clk 0:02:58.3]}
4. O-O {[%clk 0:02:59.8]} 4... Nc6 {[%clk 0:02:57.7]} 5. c4 {[%clk 0:02:59.7]}
5... e5 {[%clk 0:02:55.5]} 6. cxd5 {[%clk 0:02:59.2]} 6... Nxd5 {[%clk
0:02:54.4]} 7. Nc3 {[%clk 0:02:59.7]} 7... Nxc3 {[%clk 0:02:51.3]} 8. bxc3
{[%clk 0:03:00.6]} 8... Be7 {[%clk 0:02:50.1]} 9. Rb1 {[%clk 0:02:51.7]} 9...
O-O {[%clk 0:02:48.8]} 10. Qc2 {[%clk 0:02:41.4]} 10... Qc7 {[%clk 0:02:43.2]}
11. d3 {[%clk 0:02:41.3]} 11... Be6 {[%clk 0:02:37.3]} 12. Ng5 {[%clk
0:02:34.6]} 12... Bxg5 {[%clk 0:02:36.9]} 13. Bxg5 {[%clk 0:02:35.5]} 13... f6
{[%clk 0:02:37.2]} 14. Be3 {[%clk 0:02:33.8]} 14... b6 {[%clk 0:02:35.5]} 15.
Rfd1 {[%clk 0:02:31.3]} 15... Rfd8 {[%clk 0:02:33.3]} 16. Qb2 {[%clk 0:02:30.9]}
16... Rac8 {[%clk 0:02:30.3]} 17. Rbc1 {[%clk 0:02:09.1]} 17... Qf7 {[%clk
0:02:28.7]} 18. a3 {[%clk 0:01:59.6]} 18... Bd5 {[%clk 0:02:27]} 19. Bh3 {[%clk
0:01:57.3]} 19... Rc7 {[%clk 0:02:20]} 20. d4 {[%clk 0:01:54.3]} 20... cxd4
{[%clk 0:02:11.2]} 21. cxd4 {[%clk 0:01:54.5]} 21... Nxd4 {[%clk 0:02:05.5]} 22.
Rxc7 {[%clk 0:01:52.6]} 22... Nxe2+ {[%clk 0:02:01]} 23. Qxe2 {[%clk 0:01:52]}
23... Qxc7 {[%clk 0:02:00.3]} 24. Rxd5 {[%clk 0:01:50.3]} 24... Rxd5 {[%clk
0:01:58.6]} 25. Be6+ {[%clk 0:01:50.1]} 1-0

[Event "Early-Titled-Tuesday-Blitz-June-18-2024"]
[Site "Chess.com"]
[Date "2024.06.18"]
[Round "6"]
[White "K_A_S_T_O_R"]
[Black "artooon"]
[Result "1-0"]
[WhiteElo "2850"]
[BlackElo "3092"]
[TimeControl "180+1"]
[EndTime "9:05:29 PDT"]
[Termination "K_A_S_T_O_R won by resignation"]

1. e4 {[%clk 0:03:00.9]} 1... c5 {[%clk 0:02:59.4]} 2. Nf3 {[%clk 0:03:00.8]}
2... Nc6 {[%clk 0:02:59.6]} 3. d4 {[%clk 0:03:01]} 3... cxd4 {[%clk 0:03:00.5]}
4. Nxd4 {[%clk 0:03:01.4]} 4... Nf6 {[%clk 0:03:00.5]} 5. Nc3 {[%clk 0:03:01.3]}
5... e6 {[%clk 0:03:00.7]} 6. Ndb5 {[%clk 0:03:00.5]} 6... Bb4 {[%clk
0:03:00.5]} 7. Bf4 {[%clk 0:03:00.4]} 7... Nxe4 {[%clk 0:02:58.9]} 8. Qf3 {[%clk
0:02:59]} 8... d5 {[%clk 0:02:58.7]} 9. O-O-O {[%clk 0:02:56.2]} 9... Bxc3
{[%clk 0:02:53.9]} 10. Nc7+ {[%clk 0:02:47.8]} 10... Kf8 {[%clk 0:02:54]} 11.
bxc3 {[%clk 0:02:48.2]} 11... g5 {[%clk 0:02:49.7]} 12. Qxe4 {[%clk 0:02:30.7]}
12... gxf4 {[%clk 0:02:42.1]} 13. Qxf4 {[%clk 0:02:23.6]} 13... e5 {[%clk
0:02:29.9]} 14. Qh6+ {[%clk 0:02:20.4]} 14... Ke7 {[%clk 0:02:25.5]} 15. Nxd5+
{[%clk 0:02:18.7]} 15... Ke8 {[%clk 0:02:09.9]} 16. Nf6+ {[%clk 0:02:18.5]}
16... Ke7 {[%clk 0:02:08.6]} 17. Rxd8 {[%clk 0:02:18.3]} 17... Rxd8 {[%clk
0:02:09.5]} 18. Ne4 {[%clk 0:02:16.7]} 18... Be6 {[%clk 0:02:07.4]} 19. Qf6+
{[%clk 0:02:16.2]} 19... Kf8 {[%clk 0:02:07.6]} 20. Ng5 {[%clk 0:02:14.5]} 20...
Re8 {[%clk 0:02:01.7]} 21. Nxe6+ {[%clk 0:02:13.5]} 21... Rxe6 {[%clk
0:02:02.6]} 22. Qh8+ {[%clk 0:02:13.8]} 22... Ke7 {[%clk 0:02:02.9]} 23. Qxa8
{[%clk 0:02:13.9]} 23... Nd8 {[%clk 0:02:03.8]} 24. Qxa7 {[%clk 0:02:13.4]}
24... Kd6 {[%clk 0:02:02.1]} 25. Bc4 {[%clk 0:02:11.9]} 25... Rf6 {[%clk
0:02:00.9]} 26. Rd1+ {[%clk 0:02:11]} 26... Ke7 {[%clk 0:02:00.7]} 27. Qc5+
{[%clk 0:02:09.8]} 27... Ke8 {[%clk 0:02:01.3]} 28. Qc8 {[%clk 0:02:08.2]} 28...
Kf8 {[%clk 0:01:59.6]} 29. Qxd8+ {[%clk 0:02:07.6]} 29... Kg7 {[%clk 0:02:00.5]}
30. Qxf6+ {[%clk 0:02:07.9]} 30... Kxf6 {[%clk 0:02:01.4]} 31. Rd7 {[%clk
0:02:07.7]} 31... b5 {[%clk 0:02:01.5]} 32. Rxf7+ {[%clk 0:02:07.5]} 32... Kg6
{[%clk 0:02:02.1]} 33. Bb3 {[%clk 0:02:08]} 33... h5 {[%clk 0:02:03]} 34. h4
{[%clk 0:02:06.3]} 34... b4 {[%clk 0:02:03.9]} 35. cxb4 {[%clk 0:02:05.5]} 35...
e4 {[%clk 0:02:04.1]} 36. Rf4 {[%clk 0:02:05.7]} 36... e3 {[%clk 0:02:04.5]} 37.
fxe3 {[%clk 0:02:06.3]} 37... Kg7 {[%clk 0:02:05.1]} 38. e4 {[%clk 0:02:06.8]}
38... Kg6 {[%clk 0:02:05.5]} 39. e5 {[%clk 0:02:07.3]} 39... Kg7 {[%clk
0:02:06.4]} 40. e6 {[%clk 0:02:07.8]} 40... Kg6 {[%clk 0:02:07.3]} 41. e7 {[%clk
0:02:08.2]} 41... Kg7 {[%clk 0:02:08.2]} 42. b5 {[%clk 0:02:08.4]} 42... Kh6
{[%clk 0:02:09.1]} 43. e8=Q {[%clk 0:02:08]} 43... Kg7 {[%clk 0:02:10]} 44. Qf8+
{[%clk 0:02:08.3]} 44... Kg6 {[%clk 0:02:10]} 45. Rf6+ {[%clk 0:02:08.5]} 1-0

[Event "Early-Titled-Tuesday-Blitz-June-18-2024"]
[Site "Chess.com"]
[Date "2024.06.18"]
[Round "6"]
[White "dhammiko"]
[Black "Matalon"]
[Result "0-1"]
[WhiteElo "2183"]
[BlackElo "2448"]
[TimeControl "180+1"]
[EndTime "9:05:45 PDT"]
[Termination "Matalon won by resignation"]

1. e4 {[%clk 0:03:00.9]} 1... c5 {[%clk 0:02:57.1]} 2. Nf3 {[%clk 0:03:00.8]}
2... d6 {[%clk 0:02:56.9]} 3. d4 {[%clk 0:03:01.2]} 3... cxd4 {[%clk 0:02:57.1]}
4. Nxd4 {[%clk 0:03:01.6]} 4... Nf6 {[%clk 0:02:57.7]} 5. f3 {[%clk 0:03:00.6]}
5... e5 {[%clk 0:02:58.6]} 6. Nb3 {[%clk 0:02:57.7]} 6... d5 {[%clk 0:02:56.7]}
7. Bg5 {[%clk 0:02:56.3]} 7... Be6 {[%clk 0:02:55.9]} 8. Nc3 {[%clk 0:02:50.7]}
8... d4 {[%clk 0:02:54]} 9. Bb5+ {[%clk 0:02:38.2]} 9... Nc6 {[%clk 0:02:53.7]}
10. Ne2 {[%clk 0:02:37.5]} 10... Be7 {[%clk 0:02:48.8]} 11. O-O {[%clk
0:02:34.9]} 11... O-O {[%clk 0:02:48.3]} 12. Ng3 {[%clk 0:02:33.6]} 12... Rc8
{[%clk 0:02:39.4]} 13. f4 {[%clk 0:02:24.7]} 13... exf4 {[%clk 0:02:22.9]} 14.
Bxf4 {[%clk 0:02:22.8]} 14... Qb6 {[%clk 0:01:48.4]} 15. Bd3 {[%clk 0:02:10.1]}
15... Ng4 {[%clk 0:01:42]} 16. Qe2 {[%clk 0:01:42.4]} 16... Nb4 {[%clk
0:01:41.3]} 17. Nc1 {[%clk 0:01:34]} 17... Nxc2 {[%clk 0:01:37.9]} 18. Bxc2
{[%clk 0:01:31.2]} 18... d3+ {[%clk 0:01:36.1]} 0-1

[Event "Early-Titled-Tuesday-Blitz-June-18-2024"]
[Site "Chess.com"]
[Date "2024.06.18"]
[Round "6"]
[White "EvgenyBurmakin"]
[Black "Dixit_Nikhil"]
[Result "1-0"]
[WhiteElo "2401"]
[BlackElo "2585"]
[TimeControl "180+1"]
[EndTime "9:05:52 PDT"]
[Termination "EvgenyBurmakin won by resignation"]

1. e4 {[%clk 0:02:59.7]} 1... c5 {[%clk 0:02:59.3]} 2. Nc3 {[%clk 0:02:56.7]}
2... Nc6 {[%clk 0:02:58.9]} 3. Bb5 {[%clk 0:02:56.3]} 3... h6 {[%clk 0:02:54.9]}
4. Bxc6 {[%clk 0:02:56]} 4... bxc6 {[%clk 0:02:41.9]} 5. f4 {[%clk 0:02:54.5]}
5... g5 {[%clk 0:02:41.1]} 6. f5 {[%clk 0:02:40.2]} 6... Bg7 {[%clk 0:02:33.6]}
7. Nf3 {[%clk 0:02:38.3]} 7... Nf6 {[%clk 0:02:32]} 8. e5 {[%clk 0:02:26.3]}
8... Nd5 {[%clk 0:02:29.8]} 9. O-O {[%clk 0:02:18.1]} 9... Nxc3 {[%clk
0:02:28.7]} 10. dxc3 {[%clk 0:02:18]} 10... Qc7 {[%clk 0:02:26.7]} 11. f6 {[%clk
0:01:59.9]} 11... exf6 {[%clk 0:02:26.1]} 12. exf6 {[%clk 0:02:00.8]} 12... Bxf6
{[%clk 0:02:26.4]} 13. Qe2+ {[%clk 0:01:53.7]} 13... Kf8 {[%clk 0:02:21.9]} 14.
Nh4 {[%clk 0:01:47.6]} 14... Bg7 {[%clk 0:01:55.9]} 15. Ng6+ {[%clk 0:01:39.5]}
15... Kg8 {[%clk 0:01:56]} 16. Qe8+ {[%clk 0:01:33.5]} 16... Kh7 {[%clk
0:01:55.8]} 17. Nxh8 {[%clk 0:01:27.9]} 17... Bxh8 {[%clk 0:01:55]} 18. Rxf7+
{[%clk 0:01:25]} 18... Bg7 {[%clk 0:01:55]} 19. Qe7 {[%clk 0:01:11.2]} 1-0

[Event "Early-Titled-Tuesday-Blitz-June-18-2024"]
[Site "Chess.com"]
[Date "2024.06.18"]
[Round "6"]
[White "Eliwood44"]
[Black "manitodeplomo"]
[Result "0-1"]
[WhiteElo "2480"]
[BlackElo "2652"]
[TimeControl "180+1"]
[EndTime "9:06:08 PDT"]
[Termination "manitodeplomo won by resignation"]

1. d4 {[%clk 0:03:00.9]} 1... d5 {[%clk 0:02:59.2]} 2. c4 {[%clk 0:02:58.8]}
2... c6 {[%clk 0:02:59.1]} 3. Nf3 {[%clk 0:02:58.1]} 3... dxc4 {[%clk
0:02:58.6]} 4. e4 {[%clk 0:02:56.9]} 4... b5 {[%clk 0:02:58.6]} 5. b3 {[%clk
0:02:56.6]} 5... cxb3 {[%clk 0:02:53.6]} 6. axb3 {[%clk 0:02:57.3]} 6... e6
{[%clk 0:02:51.9]} 7. Bd2 {[%clk 0:02:57.4]} 7... Nf6 {[%clk 0:02:20.6]} 8. Ba5
{[%clk 0:02:53.1]} 8... Qxa5+ {[%clk 0:02:09.5]} 9. Rxa5 {[%clk 0:02:54]} 9...
Bb4+ {[%clk 0:02:09.5]} 10. Nbd2 {[%clk 0:02:53.4]} 10... Bxa5 {[%clk
0:02:09.9]} 11. Bd3 {[%clk 0:02:53.5]} 11... O-O {[%clk 0:02:09]} 12. O-O {[%clk
0:02:52.2]} 12... h6 {[%clk 0:02:08.3]} 13. e5 {[%clk 0:02:51.6]} 13... Nd5
{[%clk 0:02:08]} 14. Ne4 {[%clk 0:02:47.1]} 14... Nd7 {[%clk 0:02:02.5]} 15. Qe2
{[%clk 0:02:39.9]} 15... Bb4 {[%clk 0:01:57.5]} 16. Ng3 {[%clk 0:02:37.9]} 16...
Nf4 {[%clk 0:01:53]} 17. Qe4 {[%clk 0:02:37.6]} 17... Nxd3 {[%clk 0:01:53.6]}
18. Qxd3 {[%clk 0:02:38.5]} 18... Bb7 {[%clk 0:01:46.1]} 19. Ne4 {[%clk
0:02:31]} 19... Rfd8 {[%clk 0:01:43.2]} 20. Qe3 {[%clk 0:02:29.2]} 20... Bf8
{[%clk 0:01:36.9]} 21. Ne1 {[%clk 0:02:21.8]} 21... a5 {[%clk 0:01:10.3]} 22.
Nd3 {[%clk 0:02:21.2]} 22... a4 {[%clk 0:01:09]} 23. bxa4 {[%clk 0:02:20.8]}
23... bxa4 {[%clk 0:01:07.3]} 24. Rb1 {[%clk 0:02:21]} 24... a3 {[%clk 0:01:01]}
25. Ndc5 {[%clk 0:02:16.1]} 25... a2 {[%clk 0:00:59.5]} 26. Ra1 {[%clk
0:02:16.2]} 26... Nxc5 {[%clk 0:00:59.2]} 27. dxc5 {[%clk 0:02:16.4]} 27... Rd1+
{[%clk 0:00:52.9]} 28. Rxd1 {[%clk 0:02:10.5]} 28... a1=Q {[%clk 0:00:53.1]} 0-1

[Event "Early-Titled-Tuesday-Blitz-June-18-2024"]
[Site "Chess.com"]
[Date "2024.06.18"]
[Round "6"]
[White "CMButgood"]
[Black "yonaltimur"]
[Result "1-0"]
[WhiteElo "2019"]
[BlackElo "2310"]
[TimeControl "180+1"]
[EndTime "9:06:08 PDT"]
[Termination "CMButgood won by resignation"]

1. e4 {[%clk 0:02:54.1]} 1... c5 {[%clk 0:02:57.6]} 2. Nf3 {[%clk 0:02:54.2]}
2... d6 {[%clk 0:02:57.6]} 3. d4 {[%clk 0:02:54.9]} 3... cxd4 {[%clk 0:02:58.5]}
4. Nxd4 {[%clk 0:02:55.4]} 4... Nf6 {[%clk 0:02:59.4]} 5. Nc3 {[%clk 0:02:56.1]}
5... a6 {[%clk 0:02:59.3]} 6. Bg5 {[%clk 0:02:56.2]} 6... e6 {[%clk 0:02:50.8]}
7. f4 {[%clk 0:02:56.6]} 7... Nbd7 {[%clk 0:02:35.6]} 8. Qf3 {[%clk 0:02:55.9]}
8... Qc7 {[%clk 0:02:35.3]} 9. O-O-O {[%clk 0:02:56.3]} 9... b5 {[%clk
0:02:35.1]} 10. e5 {[%clk 0:02:55]} 10... Bb7 {[%clk 0:02:35]} 11. Qh3 {[%clk
0:02:55.2]} 11... dxe5 {[%clk 0:02:34.6]} 12. Nxe6 {[%clk 0:02:55.4]} 12... fxe6
{[%clk 0:02:27.6]} 13. Qxe6+ {[%clk 0:02:56.3]} 13... Be7 {[%clk 0:02:27.8]} 14.
Bxb5 {[%clk 0:02:57.2]} 14... axb5 {[%clk 0:02:25.3]} 15. Nxb5 {[%clk
0:02:58.1]} 15... Qc6 {[%clk 0:02:25]} 16. Nd6+ {[%clk 0:02:53.7]} 16... Kd8
{[%clk 0:02:24.1]} 17. fxe5 {[%clk 0:02:49.2]} 17... Rc8 {[%clk 0:01:47.3]} 18.
Nxb7+ {[%clk 0:01:55.7]} 18... Qxb7 {[%clk 0:01:45.3]} 19. exf6 {[%clk
0:01:52.2]} 19... gxf6 {[%clk 0:01:44.9]} 20. Rhe1 {[%clk 0:01:44.8]} 20... Re8
{[%clk 0:01:40.4]} 21. Bxf6 {[%clk 0:01:41.3]} 21... Rxc2+ {[%clk 0:01:37]} 22.
Kxc2 {[%clk 0:01:37.7]} 22... Qxg2+ {[%clk 0:01:36.2]} 23. Kc1 {[%clk
0:01:21.9]} 23... Bxf6 {[%clk 0:01:31.1]} 1-0

[Event "Early-Titled-Tuesday-Blitz-June-18-2024"]
[Site "Chess.com"]
[Date "2024.06.18"]
[Round "6"]
[White "Kgli1m"]
[Black "JunjiCol"]
[Result "0-1"]
[WhiteElo "2101"]
[BlackElo "2351"]
[TimeControl "180+1"]
[EndTime "9:06:20 PDT"]
[Termination "JunjiCol won by resignation"]

1. d4 {[%clk 0:02:59.2]} 1... d5 {[%clk 0:02:59.4]} 2. Bf4 {[%clk 0:02:59.7]}
2... c5 {[%clk 0:02:58.9]} 3. c3 {[%clk 0:02:59.6]} 3... Nc6 {[%clk 0:02:57.3]}
4. e3 {[%clk 0:02:59.9]} 4... Nf6 {[%clk 0:02:57.1]} 5. Nd2 {[%clk 0:03:00.2]}
5... Bf5 {[%clk 0:02:55.3]} 6. dxc5 {[%clk 0:02:57.1]} 6... e5 {[%clk
0:02:54.9]} 7. Bg5 {[%clk 0:02:56.7]} 7... Bxc5 {[%clk 0:02:54.8]} 8. Bb5 {[%clk
0:02:55.9]} 8... O-O {[%clk 0:02:52.2]} 9. Ngf3 {[%clk 0:02:55.2]} 9... d4
{[%clk 0:02:51.7]} 10. cxd4 {[%clk 0:02:49.2]} 10... exd4 {[%clk 0:02:51.6]} 11.
e4 {[%clk 0:02:49.4]} 11... Re8 {[%clk 0:02:42.7]} 12. e5 {[%clk 0:02:47]} 12...
Nxe5 {[%clk 0:02:09.5]} 13. O-O {[%clk 0:02:34.1]} 13... Re6 {[%clk 0:02:03.7]}
14. Re1 {[%clk 0:02:14.8]} 14... Qe7 {[%clk 0:01:56.3]} 15. Nb3 {[%clk
0:02:12.8]} 15... Nxf3+ {[%clk 0:01:55.3]} 16. gxf3 {[%clk 0:02:11.3]} 16...
Rxe1+ {[%clk 0:01:54.4]} 17. Qxe1 {[%clk 0:02:11.5]} 17... Qxe1+ {[%clk
0:01:54.2]} 18. Rxe1 {[%clk 0:02:11.3]} 18... Bb6 {[%clk 0:01:54]} 19. Re7
{[%clk 0:02:04]} 19... d3 {[%clk 0:01:51.1]} 20. Rxb7 {[%clk 0:01:51.1]} 20...
Ne8 {[%clk 0:01:41.8]} 21. Be3 {[%clk 0:01:37.3]} 21... Nd6 {[%clk 0:01:38.7]}
22. Bc6 {[%clk 0:01:17.7]} 22... Nxb7 {[%clk 0:01:36.8]} 23. Bxb7 {[%clk
0:01:17.8]} 23... Re8 {[%clk 0:01:34.9]} 0-1

[Event "Early-Titled-Tuesday-Blitz-June-18-2024"]
[Site "Chess.com"]
[Date "2024.06.18"]
[Round "6"]
[White "Sargsyan_Shant"]
[Black "MagnusCarlsen"]
[Result "1-0"]
[WhiteElo "2983"]
[BlackElo "3172"]
[TimeControl "180+1"]
[EndTime "9:06:25 PDT"]
[Termination "Sargsyan_Shant won by resignation"]

1. c4 {[%clk 0:03:00.3]} 1... e5 {[%clk 0:02:52.3]} 2. g3 {[%clk 0:02:59.9]}
2... Nf6 {[%clk 0:02:51.4]} 3. Bg2 {[%clk 0:03:00.1]} 3... h6 {[%clk 0:02:52.1]}
4. Nc3 {[%clk 0:02:57.8]} 4... Bb4 {[%clk 0:02:51.5]} 5. e4 {[%clk 0:02:57.6]}
5... Nc6 {[%clk 0:02:51]} 6. Nge2 {[%clk 0:02:57.8]} 6... Bc5 {[%clk 0:02:49.4]}
7. d3 {[%clk 0:02:55.2]} 7... d6 {[%clk 0:02:50]} 8. O-O {[%clk 0:02:52.5]} 8...
Bg4 {[%clk 0:02:47.4]} 9. h3 {[%clk 0:02:50.5]} 9... Bxe2 {[%clk 0:02:47]} 10.
Qxe2 {[%clk 0:02:49.3]} 10... a5 {[%clk 0:02:47.6]} 11. Kh2 {[%clk 0:02:44.1]}
11... Nd4 {[%clk 0:02:47.4]} 12. Qd1 {[%clk 0:02:44.1]} 12... c6 {[%clk
0:02:47.4]} 13. f4 {[%clk 0:02:41.8]} 13... h5 {[%clk 0:02:38]} 14. Be3 {[%clk
0:02:40.2]} 14... Qe7 {[%clk 0:02:34.9]} 15. Qd2 {[%clk 0:02:37.5]} 15... Ne6
{[%clk 0:02:28.6]} 16. Bxc5 {[%clk 0:02:12.2]} 16... dxc5 {[%clk 0:02:28]} 17.
fxe5 {[%clk 0:02:12.7]} 17... Nd7 {[%clk 0:02:27.6]} 18. Nd5 {[%clk 0:02:13.2]}
18... Qd8 {[%clk 0:02:18.6]} 19. Rf5 {[%clk 0:01:25.5]} 19... Nd4 {[%clk
0:02:10.6]} 20. Rg5 {[%clk 0:01:25.7]} 20... g6 {[%clk 0:01:51]} 21. Rf1 {[%clk
0:01:17.3]} 21... Ne6 {[%clk 0:01:47.9]} 22. Nf6+ {[%clk 0:01:16.4]} 22... Nxf6
{[%clk 0:01:47.7]} 23. Rxf6 {[%clk 0:01:17.3]} 23... Qe7 {[%clk 0:01:43.2]} 24.
h4 {[%clk 0:01:15.1]} 24... Nxg5 {[%clk 0:01:30.5]} 25. Qxg5 {[%clk 0:01:16]}
25... O-O-O {[%clk 0:01:30.3]} 26. Rxc6+ {[%clk 0:01:16]} 1-0